Cogmind - Beta 15 @@@ ROGUE MODE // 2025.06.03 @ 17:16:45 Player: Beosis Result: Destroyed by G-47 Trooper with Particle Gun Performance ------------- Evolutions (2) 1000 Regions Visited (5) 1000 Robots Destroyed (17) 85 Value Destroyed (585) 585 Prototype IDs (0) 0 Alien Tech Used (0) 0 Bonus (0) 0 TOTAL SCORE: 2670 Bonus ------- None Cogmind --------- Core Integrity 0/550 Matter 288/300 Energy 100/100 System Corruption 2% Temperature Cool (9) Movement Core (200) Ox3 Location -8/Materials Parts ------- > --- POWER (1) -------- (None) > --- PROPULSION (4) --- (None) > --- UTILITY (4) ------ Medium Storage Unit > --- WEAPON (2) ------- (None) > --- INVENTORY (10) --- Heat Sink Advanced Heat Sink Medium Armor Plating Relay Coupler [Duelist] (16) Relay Coupler [Hunter] (11) Heavy Laser Light Assault Rifle Light Assault Rifle EMP Blaster Peak State ------------ > --- POWER ------------ Light Ion Engine > --- PROPULSION ------- Aluminum Leg Aluminum Leg > --- UTILITY ---------- Scrap Suit Medium Storage Unit Utility Shielding > --- WEAPON ----------- Heavy Laser Light Assault Rifle > --- INVENTORY -------- Ion Engine Heat Sink Advanced Heat Sink Medium Armor Plating Light Assault Rifle [Rating: 19] Favorites ----------- Power Ion Engine Engine Ion Engine Propulsion Aluminum Leg Leg Aluminum Leg Utility Medium Storage Unit Device Terrain Scanner Storage Medium Storage Unit Protection Utility Shielding Weapon Medium Laser Energy Gun Medium Laser Ballistic Gun Light Assault Rifle Launcher EMP Blaster Build | -11 -10 -10 -10 -9 -8 ------- Run | Yrd Mat Min Exi Min Mat Slots Evolved 4 | . . . . . 4 Power . | . . . . . . Propulsion 2 | . . . . . 2 Utility 2 | . . . . . 2 Weapon . | . . . . . . Parts Attached 19 | 6 2 1 . . 10 Power 2 | 1 . . . . 1 Engine 2 | 1 . . . . 1 Core . | . . . . . . Reactor . | . . . . . . Propulsion 4 | 2 . . . . 2 Treads . | . . . . . . Leg 4 | 2 . . . . 2 Wheel . | . . . . . . Hover . | . . . . . . Flight . | . . . . . . Utility 5 | 1 2 . . . 2 Device 2 | . 1 . . . 1 Storage 2 | 1 1 . . . . Processor . | . . . . . . Hackware . | . . . . . . Protection 1 | . . . . . 1 Artifact . | . . . . . . Weapon 8 | 2 . 1 . . 5 Energy Gun 5 | 2 . . . . 3 Energy Cannon . | . . . . . . Ballistic Gun 2 | . . 1 . . 1 Ballistic Cannon . | . . . . . . Launcher 1 | . . . . . 1 Special Weapon . | . . . . . . Impact Weapon . | . . . . . . Slashing Weapon . | . . . . . . Piercing Weapon . | . . . . . . Special Melee Weapon . | . . . . . . Unidentified Prototypes . | . . . . . . Parts Lost 12 | . . . . 2 10 Power 2 | . . . . . 2 Propulsion 4 | . . . . 1 3 Utility 3 | . . . . 1 2 Weapon 3 | . . . . . 3 Highest Loss Streak 5 | . . . . 2 5 To Critical Strikes . | . . . . . . Average Backups 6 | . 3 5 6 7 5 Power . | . 1 1 1 1 . Propulsion 1 | . . 1 2 2 . Utility 3 | . 1 2 3 3 3 Weapon . | . 1 . . . 1 Tool/Special . | . . . . . . Unused Backups 5 | . . . . . 5 Power . | . . . . . . Propulsion . | . . . . . . Utility 5 | . . . . . 5 Weapon . | . . . . . . Tool/Special . | . . . . . . Average Slot Usage (%) 83 | . 92 100 100 83 63 Engine 13 | . 14 14 14 14 7 Leg 21 | . 28 28 28 19 16 Device 7 | . 6 14 14 5 7 Storage 13 | . 14 14 14 14 9 Energy Gun 14 | . 28 15 14 14 8 Ballistic Gun 11 | . . 12 14 14 8 Peak Build Rating 19 | 6 7 8 8 8 19 Average Rating 8 | 4 6 7 8 6 15 On Entrance 5 | . 6 7 8 8 6 Naked Turns . | . . . . . . Heaviest Build 25 | 13 19 19 19 19 25 Greatest Support 30 | 20 20 20 20 20 30 Greatest Overweight (x) 4 | . . . . 1 4 Average Overweight (x) . | . . . . . 1 Largest Inventory Capacity 10 | 8 10 10 10 10 10 Average Capacity 9 | 7 9 10 10 10 10 Most Carried 10 | 5 5 7 7 9 10 Average Carried 6 | 1 3 5 7 8 5 Final Capacity 10 | 8 10 10 10 10 10 Final Carried 9 | 2 5 7 7 9 9 Class Distribution -------------------- 100% | Mutant Dominant Class ---------------- Mutant | -10/Materials Mutant | -10/Mines Mutant | -10/Exiles Mutant | -9/Mines Mutant | -8/Materials Resources | -11 -10 -10 -10 -9 -8 ----------- Run | Yrd Mat Min Exi Min Mat Matter Collected 430 | 192 88 16 . 19 115 Remotely . | . . . . . . Salvage Created 767 | . 163 92 . 152 360 Parts 31 | . 4 1 . 4 22 Haulers Intercepted . | . . . . . . Recyclers Shooed 4 | . . . . 4 . Parts Field Recycled . | . . . . . . Retrieved Matter . | . . . . . . Parts Self-Destructed . | . . . . . . Prevented . | . . . . . . Kills | -11 -10 -10 -10 -9 -8 ------- Run | Yrd Mat Min Exi Min Mat Combat Hostiles Destroyed 12 | . 1 2 . 1 8 Guns 11 | . 1 2 . 1 7 Classes Destroyed 6 | . 3 . . 1 2 Builder 1 | . . . . . 1 Recycler 3 | . 1 . . 2 . Watcher 1 | . 1 . . . . Swarmer 3 | . . . . 1 2 Grunt 7 | . 1 2 . . 4 Sentry 2 | . . . . . 2 Best Kill Streak 2 | . 1 1 . 1 2 Combat Bots Only 2 | . 1 1 . 1 2 Max Kills in Single Turn 2 | . 1 1 . 1 2 Gunslinging 1 | . . . . . 1 Exploded . | . . . . . . Melee . | . . . . . . Uniques/NPCs Destroyed . | . . . . . . Combat | -11 -10 -10 -10 -9 -8 -------- Run | Yrd Mat Min Exi Min Mat Hostile Shots Fired 214 | . 20 16 . 8 170 Missed 62 | . 9 3 . 1 49 Hits 152 | . 11 13 . 7 121 Melee 1 | . . . . . 1 Projectile 151 | . 11 13 . 7 120 Critical Strikes 10 | . . . . . 10 Actively Blocked 1 | . . . . . 1 Damage Taken 2228 | . 93 191 . 59 1885 Core 626 | . 7 47 . 9 563 Absorbed by Shields . | . . . . . . Redirected to Shielding 60 | . . . . . 60 Regen/Repaired (Parts) 48 | . . . . . 48 Core Remaining (%) 87 | 100 . . . 74 . Volleys Fired 100 | . 11 16 . 19 54 Largest 2 | . 2 2 . 2 2 Hottest 90 | . 90 90 . 70 89 Shots Fired 198 | . 22 30 . 38 108 Gun 196 | . 22 30 . 38 106 Cannon . | . . . . . . Launcher 2 | . . . . . 2 Special . | . . . . . . Kinetic 79 | . . 6 . 19 54 Thermal 115 | . 22 24 . 19 50 Explosive . | . . . . . . Electromagnetic 4 | . . . . . 4 Robot Hit Streak 12 | . 8 6 . 8 12 Robot Miss Streak 6 | . 2 6 . 2 2 Penetration Max . | . . . . . . Secondary Targets 3 | . . 1 . . 2 Max Gunslinging Chain 1 | . . 1 . . 1 Shots Hit Robots 134 | . 15 13 . 27 79 Core Hits 46 | . 5 5 . 8 28 Critical Kills . | . . . . . . Critical Parts Destroyed . | . . . . . . Critical Strikes 4 | . . . . 1 3 Burn 4 | . . . . 1 3 Melee Attacks . | . . . . . . Impact . | . . . . . . Slashing . | . . . . . . Piercing . | . . . . . . Sneak Attacks . | . . . . . . Combat Hostiles . | . . . . . . Follow-up Attacks . | . . . . . . Damage Inflicted 1665 | . 178 161 . 259 1067 Guns 1467 | . 178 161 . 252 876 Cannons . | . . . . . . Explosions 189 | . . . . . 189 Melee . | . . . . . . Ramming 9 | . . . . 7 2 Kinetic 415 | . . . . 103 312 Thermal 1056 | . 178 161 . 149 568 Explosive . | . . . . . . Electromagnetic 185 | . . . . . 185 Impact . | . . . . . . Slashing . | . . . . . . Piercing . | . . . . . . Highest Corruption 2 | . . . . . 2 Average Corruption 2 | . . . . . 2 Corruption Purged . | . . . . . . Corruption Blocked . | . . . . . . Overload Shots . | . . . . . . Overflow Damage . | . . . . . . Projectiles . | . . . . . . Explosions . | . . . . . . Melee . | . . . . . . Knockbacks . | . . . . . . Impact . | . . . . . . Kinetic . | . . . . . . Secondary . | . . . . . . Self-Inflicted Damage 15 | . . . . . 15 Shots 1 | . . . . . 1 Rammed 1 | . . . . . 1 Targets Rammed 3 | . . . . 1 2 Kicked 2 | . . . . 1 1 Crushed . | . . . . . . Highest Temperature 339 | . 172 339 . 90 146 Average Temperature 66 | . 72 150 . 32 44 Received Heat Transfer 1170 | . 18 108 . . 1044 Effects 3 | . . 3 . . . Interference 2 | . . 2 . . . Short Circuit 1 | . . 1 . . . Siege Activations . | . . . . . . Martial Activations . | . . . . . . Shielding Activations . | . . . . . . Robots Disrupted . | . . . . . . Combat Hostiles . | . . . . . . Robots Corrupted . | . . . . . . Combat Hostiles . | . . . . . . Parts Fried . | . . . . . . Impact Corruptions . | . . . . . . Robots Melted 1 | . . . . . 1 Combat Hostiles 1 | . . . . . 1 Parts Melted 5 | . . 1 . 1 3 Heat Transferred 3125 | . 471 458 . 518 1678 Parts Sabotaged . | . . . . . . Parts Stolen . | . . . . . . Parts Stripped . | . . . . . . Power Chain Reactions 1 | . . . . . 1 Alert | -11 -10 -10 -10 -9 -8 ------- Run | Yrd Mat Min Exi Min Mat Maximum Alert Level 1 | . . . . . 1 Low Security (%) 95 | 100 100 100 . 100 68 Level 1 4 | . . . . . 31 Level 2 . | . . . . . . Level 3 . | . . . . . . Level 4 . | . . . . . . Level 5 . | . . . . . . High Security . | . . . . . . Max Security . | . . . . . . Peak Influence 240 | . 30 30 . 24 240 Initial . | . . . . . . Average 17 | . 3 6 . . 110 Influence Increases 668 | . 52 85 . 40 491 Destroy 0b10 Robot/C 240 | . 20 40 . 20 160 Destroy 0b10 Robot/NC 25 | . 10 . . 10 5 Destroy Leader 82 | . 12 10 . 10 50 Successful Hack 15 | . 10 5 . . . Disable Machine 30 | . . . . . 30 Anti-Garrison Action 150 | . . . . . 150 Destroy Structure 6 | . . . . . 6 Lose Combat Pursuer 120 | . . 30 . . 90 Influence Decreases 469 | . 52 85 . 40 292 Time Decay 369 | . 52 85 . 40 192 Lost Part 100 | . . . . . 100 Squads Dispatched 6 | . 1 . . . 5 Investigation 1 | . 1 . . . . Extermination . | . . . . . . Reinforcement . | . . . . . . Assault 2 | . . . . . 2 Garrison 3 | . . . . . 3 Intercept . | . . . . . . Searches Triggered . | . . . . . . Construction Impeded . | . . . . . . Haulers Reinforced . | . . . . . . Active Scanning Responses . | . . . . . . Cargo Convoy Interrupts . | . . . . . . Stealth | -11 -10 -10 -10 -9 -8 --------- Run | Yrd Mat Min Exi Min Mat Distress Signals . | . . . . . . Communications Jammed . | . . . . . . Distress Signals . | . . . . . . Times Spotted 39 | . 7 4 . 4 24 Peak Tracking Total 8 | . 5 2 . 3 8 Tactical Retreats 8 | . . 2 . . 6 Traps | -11 -10 -10 -10 -9 -8 ------- Run | Yrd Mat Min Exi Min Mat Traps Triggered 1 | . 1 . . . . Indirectly . | . . . . . . Trap Hack Attempts . | . . . . . . Triggered . | . . . . . . Disarmed . | . . . . . . Reprogrammed . | . . . . . . Reused . | . . . . . . Traps Extracted . | . . . . . . Installed . | . . . . . . Triggered . | . . . . . . Machines | -11 -10 -10 -10 -9 -8 ---------- Run | Yrd Mat Min Exi Min Mat Machines Disabled 3 | . . . . . 3 Max in Single Turn 1 | . . . . . 1 Garrison Access 1 | . . . . . 1 Machines Repaired . | . . . . . . Machines Dismantled . | . . . . . . Machines Sabotaged . | . . . . . . Overloaded Fab Kills . | . . . . . . Hacking | -11 -10 -10 -10 -9 -8 --------- Run | Yrd Mat Min Exi Min Mat Machines Accessed 6 | . 4 1 . . 1 Terminals 4 | . 3 1 . . . Fabricators . | . . . . . . Repair Stations . | . . . . . . Recycling Units 1 | . 1 . . . . Scanalyzers . | . . . . . . Garrison Access 1 | . . . . . 1 Total Hacks 14 | . 8 2 . . 4 Successful 5 | . 4 1 . . . Failed 9 | . 4 1 . . 4 Catastrophic . | . . . . . . Database Lockouts . | . . . . . . Manual . | . . . . . . Terminals 9 | . 7 2 . . . Fabricators . | . . . . . . Repair Stations . | . . . . . . Recycling Units 1 | . 1 . . . . Scanalyzers . | . . . . . . Garrison Access 4 | . . . . . 4 Terminal Hacks 4 | . 3 1 . . . Alert Level 1 | . 1 . . . . Hauler Manifests 1 | . 1 . . . . Zone Layout 2 | . 1 1 . . . Fabricator Hacks . | . . . . . . Repair Station Hacks . | . . . . . . Recycling Unit Hacks 1 | . 1 . . . . Report Inventory 1 | . 1 . . . . Scanalyzer . | . . . . . . Garrison Access Hacks . | . . . . . . Unauthorized Hacks . | . . . . . . Terminals . | . . . . . . Fabricators . | . . . . . . Repair Stations . | . . . . . . Recycling Units . | . . . . . . Scanalyzers . | . . . . . . Garrison Access . | . . . . . . Data Cores Recovered . | . . . . . . Used . | . . . . . . Hacking Detections 3 | . 2 . . . 1 Full Trace Events . | . . . . . . Feedback Events . | . . . . . . Feedback Blocked . | . . . . . . Robot Schematics Acquired . | . . . . . . Robots Built . | . . . . . . Authchips . | . . . . . . Time . | . . . . . . Total Robot Build Rating . | . . . . . . Part Schematics Acquired . | . . . . . . Parts Built . | . . . . . . Authchips . | . . . . . . Time . | . . . . . . Total Part Build Rating . | . . . . . . Parts Repaired . | . . . . . . Time . | . . . . . . Parts Recycled . | . . . . . . Recycled Matter . | . . . . . . Retrieved Matter . | . . . . . . Retrieved Components . | . . . . . . Parts Scanalyzed . | . . . . . . Part Schematics Acquired . | . . . . . . Parts Damaged . | . . . . . . Bothacking | -11 -10 -10 -10 -9 -8 ------------ Run | Yrd Mat Min Exi Min Mat Used RIF Installer . | . . . . . . Robots Hacked . | . . . . . . Non-combat . | . . . . . . Combat . | . . . . . . Robot Hacks Applied . | . . . . . . Relay Couplers Released 2 | . . . . . 2 Machine Destruction 2 | . . . . . 2 Fabnet Peak Effective % . | . . . . . . Robots Rewired . | . . . . . . Allies Hacked . | . . . . . . Hacks Repelled . | . . . . . . Allies | -11 -10 -10 -10 -9 -8 -------- Run | Yrd Mat Min Exi Min Mat Total Allies . | . . . . . . Largest Group . | . . . . . . Highest-Rated Group . | . . . . . . Highest-Rated Ally . | . . . . . . Total Orders . | . . . . . . Ally Attacks . | . . . . . . Total Damage . | . . . . . . Kills . | . . . . . . Allies Corrupted . | . . . . . . Allies Melted . | . . . . . . Intel | -11 -10 -10 -10 -9 -8 ------- Run | Yrd Mat Min Exi Min Mat Active Infowar (turns) 1412 | . 175 389 34 814 . Terrain 1412 | . 175 389 34 814 . Robot Analysis Total . | . . . . . . Derelict Logs Recovered 4 | . . 2 . 2 . Drone Launches . | . . . . . . Drone Recoveries . | . . . . . . Exploration | -11 -10 -10 -10 -9 -8 ------------- Run | Yrd Mat Min Exi Min Mat Turns Passed 3233 | 87 338 389 34 1919 466 Spaces Moved 1482 | 71 246 284 29 711 141 Core 28 | 16 . . . . 12 Treads . | . . . . . . Legs 1454 | 55 246 284 29 711 129 Wheels . | . . . . . . Hover . | . . . . . . Flight . | . . . . . . Fastest Speed 50 | 50 120 120 120 120 120 Average Speed 145 | 104 120 120 120 161 185 Slowest Speed 260 | 120 120 120 120 190 260 Overloaded Moves . | . . . . . . Propulsion Burnouts . | . . . . . . Robots Hopped . | . . . . . . Potential Cave-ins . | . . . . . . Cave-ins Triggered . | . . . . . . Exploration Rate (%) 39 | 5 49 62 8 101 10 Regions Visited 5 Branch Regions 3 Pre-discovered Areas 2 | . . 1 . 1 . Known Exits Taken . | . . . . . . Unknown Exits Taken 5 | 1 1 1 1 1 . Scrap Searched 4 | . . 1 . 3 . Spaces Dug . | . . . . . . Terrain Destroyed 5 | . . . . . 5 Melee . | . . . . . . Projectile . | . . . . . . AOE 5 | . . . . . 5 Terrain Rammed . | . . . . . . Walls Destroyed . | . . . . . . Machines Disabled . | . . . . . . Actions | -11 -10 -10 -10 -9 -8 --------- Run | Yrd Mat Min Exi Min Mat Total 2372 | 83 267 303 28 1446 245 Wait 746 | . 3 . . 714 29 Move 1477 | 70 245 283 28 710 141 Hop . | . . . . . . Pick Up 23 | 7 5 2 . 2 7 Fast Attach 1 | 1 . . . . . Attach 13 | 5 1 . . . 7 Detach 1 | . . . . . 1 Swap 6 | . 1 1 . . 4 Drop 2 | . 1 1 . . . Fire 100 | . 11 16 . 19 54 Melee . | . . . . . . Ram 1 | . . . . . 1 Kick 2 | . . . . 1 1 Crush . | . . . . . . Escape Stasis . | . . . . . . Rewire . | . . . . . . Trap . | . . . . . . Miscellaneous . | . . . . . . Route ------- -11/Scrapyard -10/Materials (discovered 2 exits: [*Mat] / *Min) -10/Mines (discovered 3 exits: [*Mat x2] / [*Exi]) -10/Exiles -9/Mines (discovered 2 exits: *Mat x2) -8/Materials (discovered 1 exit: Fac) History --------- Turn | Location | Event 3 | -11/Scrapyard | Discovered new exit (range 16) 88 | -11/Scrapyard | Entered Materials 261 | -10/Materials | Discovered new exit (range 13) 310 | -10/Materials | Build established: Mutant 370 | -10/Materials | Discovered new exit (range 6) 426 | -10/Materials | Entered Mines 439 | -10/Mines | Met a Derelict bent on vengeance 533 | -10/Mines | Learned Materials emergency access door positions 593 | -10/Mines | Discovered new exit (range 6) 729 | -10/Mines | Learned location of Zion (-7) 768 | -10/Mines | Found a Scrap Suit stashed away for nefarious purposes 771 | -10/Mines | Found Scrap Suit 800 | -10/Mines | Discovered new exit (range 10) 810 | -10/Mines | Deemed a non-threat by the Exiles lab entrance 810 | -10/Mines | Discovered new exit (range 5) 815 | -10/Mines | Entered Exiles 832 | -10/Exiles | Discovered new exit (range 15) 849 | -10/Exiles | Entered Mines 978 | -9/Mines | Discovered new exit (range 10) 2025 | -9/Mines | Learned 2 Materials zone layouts 2033 | -9/Mines | Discovered new exit (range 10) 2541 | -9/Mines | Learned location of Storage (-9) 2768 | -9/Mines | Entered Materials 2768 | -8/Materials | Evolved 4 slots: Propulsion x2, Utility x2 2769 | -8/Materials | Identified exit to Factory 2830 | -8/Materials | Garrison activated, responded to threat 3213 | -8/Materials | Core integrity fell below 50% 3220 | -8/Materials | Core integrity fell below 20% 3234 | -8/Materials | Destroyed by G-47 Trooper with Particle Gun Last Messages --------------- M-28 Smith repairs G-47 Trooper. Critical hit (Burn: +37). Shock Rifle destroyed. Aluminum Leg destroyed. C-30 ARC bursts open, deploying its payload. G-50 Soldier unfolds itself. G-47 Trooper unfolds itself. B-36 Bruiser unfolds itself. M-28 Smith unfolds itself. Scrap Suit destroyed. Slammed into G-47 Trooper. Destabilizing: System corrupted (+2). M-28 Smith repairs G-47 Trooper Aluminum Leg. M-28 Smith repairs M-28 Smith. Critical hit (Burn: +37). G-47 Trooper IFF system glitched. M-28 Smith repairs G-47 Trooper. G-50 Soldier misfires. Critical hit (Burn: +37). M-28 Smith repairs G-47 Trooper. Map ----- +----------------------------------------------------+ | ???????????????????????????????????????# ??????? | | ???????????????????????????????????????# ??????? | | ???????????????????????????????????????# +?????? | | ???????????????????????????????????????# #?????? | | ???????????????????????????????????????# #?????? | | ???????????????????????????????????????# #?????? | | ???????????????????????????????????????# #?????? | | ???????????????????????????????????????# #?????? | | ???????????????????????????????????????# #?????? | | ???????????????????????????????????????# ####### | | ????????????????#########??????????????# # # | | ?????????+??????# #??????????????# # "" # | | ????????????????# #??????????????# # "Y # | | ????????????????# #??????????????# # "" # | | ????????????????# #######+######## =#% # | | ????????????????# # %#%[ # | | ????????????????# + %+%! # | | ????????????????# # ![#%= # | | ????????????????# # #########+## [#=""" # | | ????????????????# # #??# # # "" # | | ????????????????# # #### """ # # "" # | | ????????????????# + + "G% # #[ # | | ????????????????#########% #### "" # ####### | | ????????????????# # #??# # #?????? | | ????????????????# # ############ #?????? | | ????????????????# #@ #?????? | | ????????????????# / #?????? | | ????????????????# g#gb% #?????? | | ????????????????# [ gg#m;;############ #?????? | | ????????????????#[ " ;=gm| #??????# #?????? | | ????????????????#%! = T ; !g ] #??????#####?????? | | ???????????????#[= ""; ]] #????????????????? | | ???????????????## # #????????????????? | | ????????????????######### ! =#????????????????? | | ????????????????????????#########????????????????? | | | | | | | | | | | | | | | | | | | | | | | | | | | | | | | +----------------------------------------------------+ Best States ------------- Heat Dissipation 31 Energy Generation 10 Energy Capacity 250 Matter Stores 300 Matter Capacity 300 Sight Range 16 Terrain Scan Range 14 Terrain Scan Density 10 Utility Shielding 33 Evasion (%) 55 Item Schematics ----------------- None Robot Schematics ------------------ None Fabricated ------------ Nothing Repaired ---------- Nothing Alien Tech Used ----------------- None Achievements -------------- None Challenges ------------ None Game ------ Seed WeightTransmissionInsulator Manual? 0 Play Time 00:25:06 Cumulative 16.9 hours Start 2025.06.03 @ 10:09:19 End 2025.06.03 @ 17:16:45 Sessions 3 Manual Loads 0 Difficulty Rogue Special Mode None Game No. 18 Rogue 12 Adventurer 0 Explorer 6 Win Type - Total 0 Types 0/0/0/0/0/0/0/0/0/0 Lore% 11 Gallery% 17 Achievement% 20 Wizard Run 0 Options --------- Layout 1 ASCII 0 Keyboard 0 Movement Mouse Keybinds 0 Fullscreen 1 Font 24/Smallcaps Map View 50x35 Zoom Use 0% Tactical HUD 0 Map Filters NONE Filters NONE Steam 1 RUN: 00232dca-9600-4428-8ec0-379f2410a934